bitfinex/quotes_SOLUSD_20241111
["timestamp","ask_amount","ask_price","bid_price","bid_amount"]
[1731330430343,31.71290708,215.41,215.33,27.07060708]
[1731330430538,31.71290708,215.41,215.33,31.71440708]
[1731330431146,81.6009,215.5,215.35,27.07060708]
[1731330431147,27.07060708,215.43,215.35,27.07060708]
[1731330431721,27.07060708,215.45,215.37,27.07060708]
[1731330431923,27.07060708,215.47,215.39,27.07060708]
[1731330432223,31.71160708,215.47,215.39,38.67710708]
[1731330432548,27.07060708,215.45,215.39,16.2492]
[1731330432729,27.07060708,215.47,215.39,43.31980708]
[1731330432928,27.07060708,215.49,215.41,27.07060708]
[1731330433247,27.07060708,215.47,215.39,43.31980708]
[1731330434143,31.71160708,215.47,215.39,16.2492]
[1731330434328,27.07060708,215.41,215.34,11.6092]
[1731330434528,27.07060708,215.38,215.34,11.6092]
[1731330434741,27.07060708,215.4,215.34,11.6092]
[1731330434929,27.07060708,215.42,215.34,38.67980708]
[1731330435744,27.07060708,215.46,215.36,27.07060708]
[1731330436126,4.6414,215.45,215.37,4.6431]
[1731330436625,27.07060708,215.46,215.37,16.251]
[1731330437029,27.07060708,215.46,215.38,27.07060708]
[1731330437638,27.07060708,215.48,215.4,27.07060708]
[1731330437826,27.07060708,215.46,215.39,23.776884]
[1731330438127,27.07060708,215.46,215.4,4.6425]
[1731330438628,27.07060708,215.46,215.4,16.2488]
[1731330439041,27.07060708,215.46,215.4,11.6063]
[1731330439233,27.07060708,215.44,215.38,4.6427]
[1731330439434,27.07060708,215.44,215.35,11.6087]
[1731330439435,27.07060708,215.44,215.35,16.2521]
[1731330439935,27.07060708,215.42,215.35,11.6087]
[1731330440128,27.07060708,215.42,215.35,16.2523]
[1731330440636,27.07060708,215.38,215.3,11.6112]
[1731330440833,27.07060708,215.38,215.3,38.68180708]
[1731330441348,27.07060708,215.38,215.3,11.6112]
[1731330441642,27.07060708,215.4,215.3,38.68180708]
[1731330441841,27.07060708,215.4,215.32,27.07060708]
[1731330442235,27.07060708,215.44,215.36,27.07060708]
[1731330443345,27.07060708,215.46,215.38,27.07060708]
[1731330443527,4.6414,215.45,215.38,38.67780708]
[1731330443858,27.07060708,215.44,215.38,16.2501]
[1731330444331,27.07060708,215.46,215.38,43.32070708]
[1731330444952,27.07060708,215.48,215.4,27.07060708]
[1731330445543,27.07060708,215.48,215.42,27.07060708]
[1731330445745,27.07060708,215.5,215.42,27.07060708]
[1731330446059,27.07060708,215.5,215.44,27.07060708]
[1731330446230,27.07060708,215.52,215.44,27.07060708]
[1731330446436,27.07060708,215.54,215.46,27.07060708]
[1731330446652,27.07060708,215.5,215.44,27.07060708]
[1731330446959,4.639,215.56,215.41,16.248]
[1731330446960,27.07060708,215.48,215.41,16.248]
[1731330447138,27.07060708,215.49,215.41,43.31860708]
[1731330447654,27.07060708,215.52,215.44,27.07060708]
[1731330447856,27.07060708,215.54,215.48,27.07060708]
[1731330448065,27.07060708,215.56,215.48,27.07060708]
[1731330448759,27.07060708,215.56,215.45,23.776884]
[1731330448966,27.07060708,215.56,215.49,38.67200708]
[1731330449136,27.07060708,215.52,215.46,4.6412]
[1731330449339,27.07060708,215.48,215.41,4.66610545]
[1731330449542,27.07060708,215.46,215.39,22.5769]
[1731330449854,27.07060708,215.46,215.39,10.9704]
[1731330450240,27.07060708,215.48,215.4,27.07060708]
[1731330450641,27.07060708,215.48,215.39,22.5772]
[1731330450845,27.07060708,215.48,215.4,27.07060708]
[1731330451359,27.07060708,215.5,215.4,27.07060708]
[1731330451654,27.07060708,215.46,215.39,16.2493]
[1731330451833,27.07060708,215.42,215.37,15.4809]
[1731330452039,27.07060708,215.38,215.33,6.5257]
[1731330452536,27.07060708,215.38,215.33,11.1696]
[1731330453354,27.07060708,215.4,215.33,11.1696]
[1731330453561,27.07060708,215.42,215.33,22.7796]
[1731330453741,27.07060708,215.42,215.34,27.07060708]
[1731330454564,27.07060708,215.4,215.33,18.1357]
[1731330454858,27.07060708,215.42,215.34,27.07060708]
[1731330455870,27.07060708,215.44,215.36,27.07060708]
[1731330456162,27.07060708,215.42,215.36,16.2516]
[1731330456833,27.07060708,215.42,215.36,16.2517]
[1731330457265,27.07060708,215.42,215.36,11.6084]
[1731330457647,27.07060708,215.39,215.31,27.07060708]
[1731330457846,27.07060708,215.37,215.31,4.6443]
[1731330458063,31.71380708,215.37,215.3,16.2561]
[1731330458563,27.07060708,215.35,215.3,11.6115]
[1731330458788,27.07060708,215.35,215.28,4.6449]
[1731330459540,31.71380708,215.37,215.29,27.07060708]
[1731330459859,31.71350708,215.39,215.31,27.07060708]
[1731330460067,11.6019,215.49,215.33,27.07060708]
[1731330460266,27.07060708,215.42,215.35,27.07060708]
[1731330460947,11.8019,215.49,215.32,16.2548]
[1731330460948,27.07060708,215.4,215.32,16.2548]
[1731330461147,27.07060708,215.36,215.27,40.90587876]
[1731330461365,39.4453,215.49,215.27,40.90587876]
[1731330461366,27.07060708,215.34,215.27,45.55107876]
[1731330461658,48.59350708,215.28,215.27,29.29307876]
[1731330461870,142.47039108,215.28,215.27,23.58267876]
[1731330462057,169.66778283,215.28,215.27,23.58267876]
[1731330462363,6.99314299,215.27,215.2,101.01010101]
[1731330462571,27.07060708,215.21,215.2,101.01010101]
[1731330462867,27.07060708,215.23,215.2,101.01010101]
[1731330464048,27.07060708,215.27,215.21,6.5447]
[1731330464241,27.07060708,215.25,215.21,6.5447]
[1731330464655,27.07060708,215.26,215.21,6.5447]
[1731330464859,44.07113897,215.27,215.21,11.1911]
[1731330465172,44.07113897,215.27,215.22,23.776884]
[1731330466058,44.07113897,215.27,215.23,4.6461]
[1731330466249,44.07113897,215.25,215.22,23.776884]
[1731330466563,44.07113897,215.27,215.22,23.776884]
[1731330467565,44.07113897,215.27,215.22,28.423084]
[1731330467745,44.07113897,215.31,215.22,84.11022297]
[1731330467948,44.07113897,215.31,215.24,44.07113897]
[1731330468161,44.07113897,215.31,215.25,28.422584]
[1731330468356,44.07113897,215.4,215.25,40.036984]
[1731330468357,44.07113897,215.33,215.25,40.036984]
[1731330468848,44.07113897,215.35,215.28,44.07113897]
[1731330469059,23.24450473,215.5,215.33,44.07113897]
[1731330469373,44.07113897,215.42,215.36,23.776884]
[1731330469671,44.07113897,215.42,215.34,23.776884]
[1731330469859,44.07113897,215.42,215.35,44.07113897]
[1731330470061,44.07113897,215.46,215.38,23.776884]
[1731330470245,44.07113897,215.44,215.4,23.776884]
[1731330470957,44.07113897,215.46,215.4,23.776884]
[1731330471860,44.07113897,215.46,215.42,23.776884]
[1731330473179,44.07113897,215.46,215.42,28.418784]
[1731330473651,44.07113897,215.48,215.42,28.418784]
[1731330473840,44.07113897,215.48,215.42,40.023984]
[1731330474672,44.07113897,215.5,215.42,40.023984]
[1731330475751,44.07113897,215.5,215.44,23.776884]
[1731330475951,44.07113897,215.52,215.44,23.776884]
[1731330476356,44.07113897,215.52,215.46,23.776884]
[1731330477357,44.07113897,215.54,215.48,23.776884]
[1731330478076,44.07113897,215.54,215.49,16.2419]
[1731330478278,44.07113897,215.56,215.5,23.776884]
[1731330478764,44.07113897,215.6,215.54,23.776884]
[1731330479276,44.07113897,215.62,215.56,23.776884]
[1731330479458,44.07113897,215.64,215.56,23.776884]
[1731330479871,44.07113897,215.64,215.57,44.07113897]
[1731330480056,44.07113897,215.66,215.6,23.776884]
[1731330480559,44.07113897,215.68,215.62,23.776884]
[1731330480763,44.07113897,215.7,215.62,23.776884]
[1731330480955,44.07113897,215.7,215.63,44.07113897]
[1731330481168,44.07113897,215.72,215.64,23.776884]
[1731330481458,44.07113897,215.74,215.68,23.776884]
[1731330482070,44.07113897,215.76,215.7,16.2261]
[1731330482264,44.07113897,215.76,215.71,23.776884]
[1731330483786,18.643844,215.88,215.71,67.84802297]
[1731330484086,44.07113897,215.85,215.78,23.776884]
[1731330484265,44.07113897,215.84,215.78,23.776884]
[1731330484457,44.07113897,215.83,215.78,23.776884]
[1731330484865,44.07113897,215.85,215.78,23.776884]
[1731330485063,44.07113897,215.89,215.81,44.07113897]
[1731330485386,44.07113897,215.91,215.84,23.776884]
[1731330485761,44.07113897,215.89,215.84,23.776884]
[1731330485963,44.07113897,215.89,215.83,23.776884]
[1731330488687,44.07113897,215.85,215.77,44.07113897]
[1731330488875,26.97470308,215.87,215.8,26.97470308]
[1731330489079,26.97470308,215.87,215.78,26.97470308]
[1731330489288,26.97470308,215.86,215.78,26.97470308]
[1731330489463,26.97470308,215.86,215.8,23.776884]
[1731330489667,26.97470308,215.85,215.8,23.776884]
[1731330489863,26.97470308,215.85,215.79,39.996284]
[1731330491297,26.97470308,215.89,215.83,23.776884]
[1731330491667,26.97470308,215.9,215.83,50.75158708]
[1731330491987,26.97470308,215.87,215.83,35.359684]
[1731330492172,26.97470308,215.87,215.83,39.992884]
[1731330492374,26.97470308,215.89,215.83,39.992884]
[1731330492564,26.97470308,215.9,215.83,39.992884]
[1731330492890,26.97470308,215.87,215.83,35.359684]
[1731330493075,26.97470308,215.88,215.83,39.992884]
[1731330493672,4.6302,215.97,215.83,39.992884]
[1731330493673,26.97470308,215.91,215.83,66.96758708]
[1731330493877,26.97470308,215.91,215.84,26.97470308]
[1731330494068,26.97470308,215.91,215.85,23.776884]
[1731330494796,26.97470308,215.92,215.85,23.776884]
[1731330495092,26.97470308,215.95,215.88,23.776884]
[1731330495689,26.97470308,215.96,215.89,23.776884]
[1731330495993,26.97470308,215.96,215.89,28.408684]
[1731330496191,26.97470308,215.96,215.89,55.38338708]
[1731330497168,26.97470308,215.96,215.89,39.988584]
[1731330497571,26.97470308,215.93,215.89,23.776884]
[1731330497879,26.97470308,215.92,215.86,23.776884]
[1731330498978,26.97470308,215.92,215.86,28.409284]
[1731330500092,26.97470308,215.91,215.86,28.409284]
[1731330500281,26.97470308,215.9,215.86,28.409284]
[1731330500681,26.97470308,215.91,215.86,28.409284]
[1731330501086,26.97470308,215.9,215.86,28.409284]
[1731330501500,26.97470308,215.91,215.86,28.409284]
[1731330501790,26.97470308,215.94,215.88,23.776884]
[1731330502301,26.97470308,215.91,215.87,23.776884]
[1731330502891,26.97470308,215.9,215.87,23.776884]
[1731330503399,26.97470308,215.91,215.87,23.776884]
[1731330503691,26.97470308,215.89,215.87,23.776884]
[1731330503898,26.97470308,215.9,215.87,23.776884]
[1731330505802,26.97470308,215.91,215.87,23.776884]
[1731330506100,26.97470308,215.92,215.87,28.409184]
[1731330506290,26.97470308,215.91,215.87,28.409184]
[1731330506693,26.97470308,215.9,215.87,28.409184]
[1731330506892,26.97470308,215.92,215.87,39.990184]
[1731330507398,26.97470308,215.93,215.87,39.990184]
[1731330508490,26.97470308,215.92,215.87,39.990184]
[1731330509084,4.6298,215.99,215.87,39.990184]
[1731330509286,26.97470308,215.95,215.87,66.96488708]
[1731330509483,26.97470308,215.94,215.87,66.96488708]
[1731330509703,26.97470308,215.94,215.87,39.990184]
[1731330509906,26.97470308,215.95,215.88,26.97470308]
[1731330510313,26.97470308,215.94,215.89,23.776884]
[1731330510489,26.97470308,215.96,215.89,50.75158708]
[1731330510686,26.97470308,215.96,215.9,16.2111]
[1731330511005,26.97470308,215.96,215.91,23.776884]
[1731330511504,26.97470308,215.99,215.92,26.97470308]
[1731330511694,26.97470308,215.99,215.93,23.776884]
[1731330512304,0.2,216.07,215.96,6.5466]
[1731330512305,4.6281,216.07,215.96,6.5466]
[1731330512528,26.97470308,216.04,215.98,23.776884]
[1731330512695,31.60310308,216.06,215.98,66.95648708]
[1731330513105,26.97470308,216.05,215.98,66.95648708]
[1731330513613,26.97470308,216.06,215.99,26.97470308]
[1731330513791,26.97470308,216.05,215.98,66.95648708]
[1731330513991,26.97470308,216.05,215.98,39.981784]
[1731330514799,26.97470308,216.03,215.98,39.981784]
[1731330515113,26.97470308,216.06,216.0,23.776884]
[1731330515309,26.97470308,216.05,216.0,23.776884]
[1731330515808,70.0,216.14,216.01,26.97470308]
[1731330515809,26.97470308,216.08,216.01,26.97470308]
[1731330515988,26.97470308,216.09,216.02,23.776884]
[1731330516191,26.97470308,216.1,216.04,23.776884]
[1731330516391,26.97470308,216.11,216.04,50.75158708]
[1731330516613,26.97470308,216.1,216.06,23.776884]
[1731330517191,26.97470308,216.14,216.08,23.776884]
[1731330517394,26.97470308,216.16,216.1,23.776884]
[1731330517596,26.97470308,216.17,216.1,50.75158708]
[1731330517789,26.97470308,216.18,216.1,50.75158708]
[1731330517986,26.97470308,216.17,216.1,23.776884]
[1731330518504,26.97470308,216.16,216.1,28.404284]
[1731330518712,26.97470308,216.18,216.1,55.37898708]
[1731330519105,26.97470308,216.19,216.11,26.97470308]
[1731330519314,26.97470308,216.18,216.12,23.776884]
[1731330519699,26.97470308,216.18,216.11,50.75158708]
[1731330519908,26.97470308,216.19,216.13,23.776884]
[1731330520517,4.6249,216.22,216.13,23.776884]
[1731330520723,26.97470308,216.18,216.13,23.776884]
[1731330521923,26.97470308,216.18,216.13,39.970684]
[1731330522220,26.97470308,216.16,216.1,23.776884]
[1731330522403,26.97470308,216.15,216.1,23.776884]
[1731330523019,26.97470308,216.16,216.1,23.776884]
[1731330523319,26.97470308,216.15,216.1,23.776884]
[1731330523521,26.97470308,216.12,216.09,6.0134]
[1731330523700,26.97470308,216.13,216.09,6.0134]
[1731330524429,26.97470308,216.17,216.1,26.97470308]
[1731330524598,26.97470308,216.17,216.09,22.2101]
[1731330525319,26.97470308,216.17,216.1,23.776884]
[1731330525512,26.97470308,216.15,216.1,23.776884]
[1731330525710,4.6242,216.25,216.1,23.776884]
[1731330526021,26.97470308,216.13,216.1,23.776884]
[1731330526404,26.97470308,216.15,216.1,23.776884]
[1731330526610,26.97470308,216.17,216.1,28.404284]
[1731330527027,61.6426,216.25,216.1,28.404284]
[1731330527324,26.97470308,216.17,216.1,28.404284]
[1731330528507,26.97470308,216.15,216.1,23.776884]
[1731330528922,26.97470308,216.13,216.1,23.776884]
[1731330529308,26.97470308,216.11,216.09,6.0134]
[1731330530026,26.97470308,216.15,216.1,23.776884]
[1731330530402,26.97470308,216.17,216.1,23.776884]
[1731330530654,4.6251,216.21,216.1,23.776884]
[1731330530655,26.97470308,216.19,216.1,50.75158708]
[1731330531121,26.97470308,216.17,216.1,50.75158708]
[1731330531533,26.97470308,216.17,216.11,4.6272]
[1731330531821,26.97470308,216.15,216.1,23.776884]
[1731330532027,26.97470308,216.13,216.1,28.404284]
[1731330532429,16.3864,216.23,216.09,6.0134]
[1731330532735,26.97470308,216.16,216.1,16.1961]
[1731330533035,26.97470308,216.12,216.09,6.0134]
[1731330533232,26.97470308,216.13,216.09,6.0134]
[1731330533728,26.97470308,216.11,216.06,27.3185]
[1731330533926,26.97470308,216.07,216.04,6.297]
[1731330534127,26.97470308,216.05,216.04,6.297]
[1731330534327,26.97470308,216.05,216.02,11.5728]
[1731330534831,26.97470308,216.07,216.02,16.202]
[1731330535624,26.97470308,216.05,216.0,20.7343]
[1731330535823,26.97470308,216.03,216.0,16.1048]
[1731330536023,26.97470308,216.03,215.99,6.297]
[1731330536334,26.97470308,216.01,215.95,20.7353]
[1731330536630,26.97470308,216.01,215.95,16.1048]
[1731330536927,26.97470308,216.03,215.95,43.18200308]
[1731330537128,26.97470308,216.05,215.97,26.97470308]
[1731330537721,26.97470308,216.07,215.99,50.75158708]
[1731330537922,38.4414,216.19,215.98,16.2051]
[1731330537923,4.6266,216.14,216.04,23.776884]
[1731330538263,26.97470308,216.07,216.01,26.97470308]
[1731330538417,4.6266,216.14,216.01,26.97470308]
[1731330538418,26.97470308,216.03,216.01,23.776884]
[1731330538627,26.97470308,216.03,215.98,11.5751]
[1731330540024,26.97470308,216.03,215.99,23.776884]
[1731330540425,11.6686,216.11,215.95,4.6306]
[1731330540426,26.97470308,216.01,215.95,4.6306]
[1731330540644,16.1961,216.1,215.94,6.297]
[1731330540645,26.97470308,215.97,215.94,6.297]
[1731330540933,26.97470308,215.95,215.89,6.4382]
[1731330541230,26.97470308,215.96,215.89,33.41290308]
[1731330541616,26.97470308,215.94,215.88,16.2123]
[1731330541815,26.97470308,215.92,215.88,16.2123]
[1731330542124,26.97470308,215.9,215.84,6.4382]
[1731330542445,26.97470308,215.88,215.84,6.4382]
[1731330542616,26.97470308,215.9,215.84,11.071]
[1731330542931,26.97470308,215.94,215.88,26.97470308]
[1731330543119,26.97470308,215.96,215.88,26.97470308]
[1731330543539,26.97470308,215.95,215.88,26.97470308]
[1731330543827,26.97470308,215.98,215.9,50.75158708]
[1731330544011,26.97470308,215.99,215.92,23.776884]
[1731330544409,26.97470308,216.02,215.96,23.776884]
[1731330544913,26.97470308,216.02,215.95,50.75158708]
[1731330545110,4.6272,216.11,215.99,26.97470308]
[1731330545428,4.6272,216.11,215.96,22.4911]
[1731330545429,26.97470308,216.01,215.96,22.4911]
[1731330545620,26.97470308,215.99,215.97,23.776884]
[1731330546019,4.627,216.12,215.97,39.982684]
[1731330546235,26.97470308,216.08,216.01,23.776884]
[1731330546544,4.627,216.12,216.01,23.776884]
[1731330546545,26.97470308,216.06,216.01,23.776884]
[1731330546837,26.97470308,216.05,215.98,50.75158708]
[1731330547036,31.60170308,216.12,215.98,50.75158708]
[1731330547037,26.97470308,216.06,215.98,50.75158708]
[1731330547228,26.97470308,216.06,216.0,23.776884]
[1731330547533,4.6278,216.09,216.0,23.776884]
[1731330547534,26.97470308,216.05,216.0,23.776884]
[1731330548319,26.97470308,216.03,216.0,23.776884]
[1731330548625,26.97470308,216.05,216.0,23.776884]
[1731330548830,26.97470308,216.05,216.0,28.406384]
[1731330549632,26.97470308,216.11,216.03,26.97470308]
[1731330549835,26.97470308,216.12,216.04,50.75158708]
[1731330550033,26.97470308,216.12,216.05,26.97470308]
[1731330550216,26.97470308,216.12,216.06,23.776884]
[1731330550421,26.97470308,216.12,216.06,39.975784]
[1731330551027,36.48651386,216.14,216.06,66.95048708]
[1731330552625,36.48651386,216.14,216.07,6.2057]
[1731330552822,26.97470308,216.14,216.08,23.776884]
[1731330553134,26.97470308,216.16,216.08,66.88748708]
[1731330553335,26.97470308,216.15,216.08,39.912784]
[1731330553520,26.97470308,216.15,216.08,66.88748708]
[1731330553929,26.97470308,216.24,216.08,66.88748708]
[1731330553930,26.97470308,216.16,216.1,28.404284]
[1731330554123,26.97470308,216.15,216.11,23.776884]
[1731330554332,26.97470308,216.17,216.11,23.776884]
[1731330554641,4.6256,216.19,216.11,23.776884]
[1731330554642,26.97470308,216.15,216.11,23.776884]
[1731330555336,26.97470308,216.14,216.11,23.776884]
[1731330555638,26.97470308,216.13,216.08,16.1359]
[1731330555847,26.97470308,216.13,216.08,20.7637]
[1731330556028,26.97470308,216.17,216.09,26.97470308]
[1731330556714,26.97470308,216.17,216.1,23.776884]
[1731330557927,26.97470308,216.17,216.1,39.972784]
[1731330558126,4.6251,216.21,216.1,39.972784]
[1731330558445,26.97470308,216.18,216.1,66.94748708]
[1731330559346,26.97470308,216.2,216.13,23.776884]
[1731330559520,26.97470308,216.18,216.13,23.776884]
[1731330559721,26.97470308,216.18,216.11,23.776884]
[1731330559949,26.97470308,216.22,216.14,46.97470308]
[1731330560119,26.97470308,216.24,216.18,23.776884]
[1731330560521,26.97470308,216.24,216.2,23.776884]
[1731330561122,26.97470308,216.28,216.2,40.038584]
[1731330561326,26.97470308,216.26,216.22,23.776884]
[1731330561537,26.97470308,216.24,216.19,6.5077]
[1731330561841,26.97470308,216.22,216.2,23.776884]
[1731330562225,17.84684584,216.33,216.2,23.776884]
[1731330562226,26.97470308,216.26,216.2,23.776884]
[1731330562742,26.97470308,216.22,216.2,23.776884]
[1731330563261,26.97470308,216.26,216.2,28.402084]
[1731330563455,26.97470308,216.26,216.2,23.776884]
[1731330564133,26.97470308,216.26,216.2,39.965384]
[1731330567331,26.97470308,216.24,216.19,6.5077]
[1731330567544,26.97470308,216.22,216.19,6.5077]
[1731330567733,26.97470308,216.24,216.19,11.1332]
[1731330568055,26.97470308,216.22,216.19,6.5077]
[1731330568283,26.97470308,216.2,216.19,6.5077]
[1731330568437,26.97470308,216.22,216.19,6.5077]
[1731330568641,26.97470308,216.22,216.14,16.2617]
[1731330568642,26.97470308,216.2,216.14,22.3923]
[1731330568854,26.97470308,216.16,216.14,22.3923]
[1731330569057,26.97470308,216.2,216.14,38.5853]
[1731330569244,26.97470308,216.2,216.14,33.9588]
[1731330569430,4.6242,216.25,216.14,33.9588]
[1731330569431,26.97470308,216.18,216.14,22.3923]
[1731330570660,26.97470308,216.18,216.14,6.1306]
[1731330570951,26.97470308,216.21,216.14,22.3235]
[1731330571131,26.97470308,216.19,216.14,6.1306]
[1731330571334,26.97470308,216.19,216.14,10.7572]
[1731330571847,26.97470308,216.21,216.15,23.776884]
[1731330572442,4.6246,216.24,216.15,50.75158708]
[1731330572749,31.59930308,216.24,216.15,50.75158708]
[1731330572937,26.97470308,216.27,216.19,26.97470308]
[1731330573139,26.97470308,216.25,216.2,23.776884]
[1731330573335,31.59950308,216.23,216.2,23.776884]
[1731330573854,31.59950308,216.23,216.18,23.776884]
[1731330574056,26.97470308,216.23,216.18,23.776884]
[1731330575052,26.97470308,216.21,216.16,23.776884]
[1731330575255,26.97470308,216.21,216.17,23.776884]
[1731330575444,26.97470308,216.23,216.17,23.776884]
[1731330575947,26.97470308,216.23,216.18,23.776884]
[1731330576461,26.97470308,216.25,216.17,26.97470308]
[1731330576756,26.97470308,216.25,216.18,23.776884]
[1731330576961,26.97470308,216.23,216.16,23.776884]
[1731330577553,31.59940308,216.23,216.17,4.6259]
[1731330577750,26.97470308,216.2,216.14,6.1306]
[1731330577938,26.97470308,216.18,216.14,6.1306]
[1731330578128,26.97470308,216.16,216.14,6.1306]
[1731330578326,26.97470308,216.16,216.09,15.6254]
[1731330578537,26.97470308,216.16,216.08,6.6419]
[1731330578538,26.97470308,216.1,216.08,6.6419]
[1731330578735,31.6959,216.23,216.08,38.24440308]
[1731330578951,26.97470308,216.18,216.08,49.81410308]
[1731330579148,26.97470308,216.18,216.11,26.97470308]
[1731330579349,1.6682745,216.27,216.11,26.97470308]
[1731330579350,26.97470308,216.2,216.11,26.97470308]
[1731330579537,26.97470308,216.2,216.11,31.60180308]
[1731330580050,26.97470308,216.2,216.12,23.776884]
[1731330580256,26.97470308,216.22,216.16,23.776884]
[1731330580632,26.97470308,216.2,216.13,26.97470308]
[1731330580834,26.97470308,216.2,216.14,23.776884]
[1731330581136,26.97470308,216.2,216.12,23.776884]
[1731330581737,26.97470308,216.2,216.14,23.776884]
[1731330583139,31.60040308,216.18,216.11,23.776884]
[1731330584950,26.97470308,216.16,216.1,20.0]
[1731330585156,26.97470308,216.14,216.08,6.6419]
[1731330585456,26.97470308,216.12,216.08,6.6419]
[1731330585754,26.97470308,216.1,216.03,6.1628]
[1731330586050,26.97470308,216.05,215.99,15.2924]
[1731330586249,26.97470308,216.03,215.99,15.2924]
[1731330587051,31.60380308,216.03,215.95,26.97470308]
[1731330587259,26.97470308,216.01,215.93,21.7441]
[1731330588361,26.97470308,216.01,215.94,23.776884]
[1731330588652,26.97470308,215.99,215.93,21.7441]
[1731330588958,26.97470308,215.97,215.89,26.97470308]
[1731330589138,26.97470308,215.99,215.91,26.97470308]
[1731330589665,26.97470308,216.05,215.97,26.97470308]
[1731330590257,26.97470308,216.05,215.98,23.776884]
[1731330590556,26.97470308,216.03,215.98,23.776884]
[1731330590788,26.97470308,215.99,215.91,26.97470308]
[1731330591147,4.6287,216.04,215.89,11.5799]
[1731330591148,26.97470308,215.97,215.89,38.55460308]
[1731330592235,31.60500308,215.97,215.89,38.55460308]
[1731330592438,31.63033885,216.17,216.03,6.2082]
[1731330592657,4.65563577,216.17,216.15,26.97470308]
[1731330592845,26.97470308,216.24,216.15,26.97470308]
[1731330593438,26.97470308,216.24,216.16,23.776884]
[1731330593854,4.6249,216.22,216.16,23.776884]
[1731330594867,4.6243,216.25,216.18,26.97470308]
[1731330595169,4.6243,216.25,216.19,23.776884]
[1731330595657,26.97470308,216.24,216.16,26.97470308]
[1731330596062,4.6247,216.23,216.17,23.776884]
[1731330596859,26.97470308,216.2,216.15,23.776884]
[1731330597073,26.97470308,216.2,216.1,26.97470308]
[1731330598299,4.6255,216.19,216.1,26.97470308]
[1731330598768,4.6255,216.19,216.11,23.776884]
[1731330598952,26.97470308,216.16,216.09,23.776884]
[1731330599870,26.97470308,216.16,216.08,26.97470308]
[1731330600040,26.97470308,216.18,216.1,26.97470308]
[1731330600238,26.97470308,216.2,216.12,26.97470308]
[1731330600449,13.29721822,216.24,216.16,26.97470308]
[1731330600450,26.97470308,216.24,216.16,26.97470308]
[1731330600757,31.59930308,216.24,216.16,26.97470308]
[1731330601063,26.97470308,216.2,216.15,23.776884]
[1731330601263,26.97470308,216.2,216.13,23.776884]
[1731330601464,26.97470308,216.22,216.15,23.776884]
[1731330601644,26.97470308,216.22,216.13,23.776884]
[1731330602295,26.97470308,216.2,216.13,23.776884]
[1731330602568,26.97470308,216.14,216.06,26.97470308]
[1731330602779,26.97470308,216.12,216.04,26.97470308]
[1731330603845,26.97470308,216.08,215.98,26.97470308]
[1731330604040,26.97470308,216.06,215.98,26.97470308]
[1731330604264,4.6285,216.05,215.98,26.97470308]
[1731330604973,4.6285,216.05,216.0,26.97470308]
[1731330605270,4.6285,216.05,216.01,23.776884]
[1731330605481,4.6285,216.05,215.99,23.776884]
[1731330605963,4.6278,216.09,216.01,23.776884]
[1731330606154,4.6278,216.09,216.0,26.97470308]
[1731330606155,4.6278,216.09,216.03,23.776884]
[1731330606345,26.97470308,216.13,216.04,26.97470308]
[1731330606570,4.6274,216.11,216.06,26.97470308]
[1731330606888,4.6274,216.11,216.07,23.776884]
[1731330607852,26.97470308,216.15,216.07,23.776884]
[1731330608076,4.6262,216.16,216.09,23.776884]
[1731330608251,4.6266,216.14,216.09,23.776884]
[1731330608568,4.6266,216.14,216.07,23.776884]
[1731330608955,4.6266,216.14,216.09,23.776884]
[1731330609165,1.78327775,216.22,216.07,4.6281]
[1731330609166,26.97470308,216.19,216.11,23.776884]
[1731330609479,4.6258,216.18,216.13,23.776884]
[1731330609782,4.6258,216.18,216.07,16.1984]
[1731330609783,26.97470308,216.15,216.07,23.776884]
[1731330610065,26.97470308,216.13,216.05,23.776884]
[1731330610460,4.627,216.12,216.05,23.776884]
[1731330610659,26.97470308,216.11,216.02,26.97470308]
[1731330610875,26.97470308,216.09,216.02,26.97470308]
[1731330611461,26.97470308,216.11,216.02,26.97470308]
[1731330611661,26.97470308,216.11,216.04,26.97470308]
[1731330611855,4.627,216.12,216.04,26.97470308]
[1731330612061,4.627,216.12,216.06,26.97470308]
[1731330612269,4.627,216.12,216.08,26.97470308]
[1731330612473,26.97470308,216.15,216.09,23.776884]
[1731330612782,26.97470308,216.15,216.05,11.5713]
[1731330612783,31.60020308,216.19,216.11,23.776884]
[1731330614555,26.97470308,216.21,216.12,26.97470308]
[1731330614768,4.6244,216.24,216.17,23.776884]
[1731330614978,4.6244,216.24,216.18,26.97470308]